Cogmind - Beta 14 @@@ ROGUE MODE // 2024.08.11 @ 21:59:52 Player: Some Pennies Result: Self-destructed Performance ------------- Evolutions (7) 3500 Regions Visited (23) 4600 Robots Destroyed (238) 1190 Value Destroyed (8223) 8223 Prototype IDs (63) 1260 Alien Tech Used (2) 400 Bonus (2687) 2687 TOTAL SCORE: 21860 Bonus ------- High Alert Combat Kills 115 Met Data Miner 300 Destroyed Z-Imprinter 1000 Triggered Deep Caves Wall 500 Exposed GOLEM Chamber 500 Met Zhirov 300 Friendly Fire -28 Cogmind --------- Core Integrity 845/1300 Matter 249/300 Energy 370/1240 System Corruption 43% Temperature Cool (0) Movement Treading (232) Ox1 Location -3/Research Parts ------- > --- POWER (2) -------- Light Neutrino Core Light Neutrino Core > --- PROPULSION (5) --- Medium Treads Biometal Medium Treads Assembled Alloy Leg Assembled Alloy Leg > --- UTILITY (12) ----- Assembled Nanovents Assembled Nanovents Assembled Nanovents High-capacity Storage Unit Assembled Biocell Array Enhanced Optical Array Assembled Combat Suite Assembled Alloy Armor > --- WEAPON (2) ------- Assembled Focal Cannon Linear Accelerator > --- INVENTORY (20) --- Light Antimatter Reactor Improved Fusion Compressor Medium Treads Improved Hover Unit Antigrav Array Impulse Thruster Array Medium Storage Unit Advanced Reaction Control System Improved Force Field Gamma Rifle Disruptor Cannon Power Sword Peak State ------------ > --- POWER ------------ Assembled Flux Generator > --- PROPULSION ------- Heavy Siege Treads Biometal Medium Treads Assembled Alloy Leg Assembled Alloy Leg > --- UTILITY ---------- Assembled Nanovents Assembled Nanovents Assembled Nanovents High-capacity Storage Unit Assembled Biocell Array Assembled Suspension Frame Enhanced Optical Array Assembled Combat Suite Assembled Alloy Armor Assembled Alloy Armor GOLEM Unit > --- WEAPON ----------- Assembled Focal Cannon Assembled Focal Cannon > --- INVENTORY -------- Light Antimatter Reactor Improved Fusion Compressor Biometal Medium Treads Biometal Medium Treads Biometal Medium Treads Biometal Medium Treads Improved Hover Unit Antigrav Array Impulse Thruster Array Medium Storage Unit Zionite Biocell Advanced Reaction Control System Improved Force Field Transdimensional Reconstructor Gamma Rifle Disruptor Cannon Light Antimatter Cannon Power Sword [Rating: 183] Favorites ----------- Power Assembled Flux Generator Engine Ion Engine Power Core Micro Nuclear Core Reactor Assembled Flux Generator Propulsion Assembled Alloy Leg Treads Light Treads Leg Assembled Alloy Leg Wheel Wheel Hover Unit Zionite Glidesys I Flight Unit Cooled VTOL Module Utility Enhanced Optical Array Device GOLEM Unit Storage Assembled Biocell Array Processor Enhanced Optical Array Hackware Hacking Suite Protection Assembled Alloy Armor Weapon Assembled Focal Cannon Energy Gun Improved Medium Laser Energy Cannon Assembled Focal Cannon Ballistic Gun Light Assault Rifle Ballistic Cannon Battle Cannon Launcher Precision Grenade Launcher Special Weapon Improved Plasma Cutter Impact Weapon Powered Hammer Slashing Weapon Power Sword Special Melee Weapon Improved Datajack Build | -11 -10 -10 -8 -7 -7 -7 -7 -7 -7 -6 -6 -6 -6 -6 -6 -5 -5 -5 -5 -5 -4 -4 -3 ------- Run | Yrd Mat Sub Mat Fac Was Fac Low Low Dat Pro Fac Low Low Zio Dee Pro Fac Upp Upp Zhi Pro Fac Res Slots Evolved 14 | . . . 4 2 . . . . . . 2 . . . . . 2 . . . . 2 2 Power 1 | . . . . . . . . . . . . . . . . . 1 . . . . . . Propulsion 3 | . . . 2 1 . . . . . . . . . . . . . . . . . . . Utility 10 | . . . 2 1 . . . . . . 2 . . . . . 1 . . . . 2 2 Weapon . | . . . . . . . . . . . . . . . . . . . . . . . . Parts Attached 332 | 8 14 15 49 26 1 27 4 3 . 5 33 2 2 5 64 14 9 5 2 2 1 17 24 Power 25 | 1 1 . 2 4 . 2 . . . 2 2 2 . 1 3 . . . . . . . 5 Engine 11 | 1 1 . 1 2 . . . . . 2 2 1 . 1 . . . . . . . . . Core 10 | . . . 1 2 . 2 . . . . . 1 . . . . . . . . . . 4 Reactor 4 | . . . . . . . . . . . . . . . 3 . . . . . . . 1 Propulsion 79 | 2 2 . 18 4 . 4 1 1 . . 7 . . . 9 2 5 1 . . 1 10 12 Treads 40 | 1 2 . 14 . . . . . . . . . . . . 1 3 1 . . 1 7 10 Leg 6 | . . . . . . . . . . . . . . . . 1 2 . . . . 3 . Wheel 1 | 1 . . . . . . . . . . . . . . . . . . . . . . . Hover 11 | . . . . . . . . . . . . . . . 9 . . . . . . . 2 Flight 21 | . . . 4 4 . 4 1 1 . . 7 . . . . . . . . . . . . Utility 127 | 3 2 3 10 8 1 17 1 1 . 1 17 . 1 3 26 12 4 4 2 2 . 5 4 Device 50 | 2 . 1 5 3 . 5 1 . . . 5 . . 1 11 7 2 2 1 1 . 1 2 Storage 23 | 1 1 . 1 1 . 5 . . . . . . . . 4 4 1 1 1 . . 1 2 Processor 8 | . . . 1 1 . 1 . . . . 4 . . . 1 . . . . . . . . Hackware 14 | . . . . 2 1 6 . . . . 2 . 1 . . . 1 . . . . 1 . Protection 32 | . 1 2 3 1 . . . 1 . 1 6 . . 2 10 1 . 1 . 1 . 2 . Artifact . | . . . . . . . . . . . . . . . . . . . . . . . . Weapon 101 | 2 9 12 19 10 . 4 2 1 . 2 7 . 1 1 26 . . . . . . 2 3 Energy Gun 11 | . 3 . . . . . . . . . . . . . 7 . . . . . . . 1 Energy Cannon 22 | . . 5 1 1 . 1 1 . . . 2 . . . 11 . . . . . . . . Ballistic Gun 20 | 2 4 1 13 . . . . . . . . . . . . . . . . . . . . Ballistic Cannon 6 | . . 2 2 . . . . . . . . . . . . . . . . . . . 2 Launcher 22 | . 2 . 3 5 . 1 . . . 1 1 . . . 8 . . . . . . 1 . Special Weapon 7 | . . 4 . 2 . . . . . . 1 . . . . . . . . . . . . Impact Weapon 5 | . . . . 1 . 1 1 . . . . . 1 1 . . . . . . . . . Slashing Weapon 7 | . . . . 1 . . . 1 . 1 3 . . . . . . . . . . 1 . Piercing Weapon . | . . . . . . . . . . . . . . . . . . . . . . . . Special Melee Weapon 1 | . . . . . . 1 . . . . . . . . . . . . . . . . . Unidentified Prototypes 26 | . 1 . 2 6 . 1 . . . . 1 . . . 8 . . . . 3 . . 4 Parts Lost 83 | . . 2 9 . . 3 . . . 1 . . . . 26 1 . . . . . 20 21 Power 8 | . . . 1 . . . . . . 1 . . . . 1 . . . . . . 1 4 Propulsion 24 | . . . 4 . . . . . . . . . . . 8 . . . . . . 7 5 Utility 40 | . . 2 3 . . 2 . . . . . . . . 14 1 . . . . . 9 9 Weapon 11 | . . . 1 . . 1 . . . . . . . . 3 . . . . . . 3 3 Highest Loss Streak 16 | . . 1 5 . . 2 . . . 1 . . . . 14 1 . . . . . 16 8 To Critical Strikes . | . . . . . . . . . . . . . . . . . . . . . . . . Average Slot Usage (%) 91 | . 100 99 93 99 100 98 100 100 100 100 98 100 100 100 88 87 87 87 88 80 88 82 76 Engine 4 | . 14 14 7 1 7 2 . . . 5 5 6 6 6 1 . . . . . . . . Reactor 2 | . . . . . . . . . . . . . . . 3 6 5 5 5 5 5 4 3 Treads 14 | . 28 28 30 . . . . . . . . . . . . 2 9 17 17 17 17 12 9 Leg 4 | . . . . . . . . . . . . . . . 1 14 16 11 11 11 11 9 9 Hover 1 | . . . . . . . . . . . . . . . 17 15 1 . . . . . . Flight 7 | . . . 1 38 38 37 38 38 38 38 32 33 33 33 10 . . . . . . . . Device 9 | . 4 . 11 7 1 2 7 2 . . 2 . . 2 14 10 12 12 16 17 17 13 22 Storage 8 | . 14 14 9 7 7 6 7 7 7 7 6 6 6 6 2 4 10 9 5 4 5 8 8 Processor 6 | . . . 6 9 7 8 7 7 7 7 11 6 6 6 6 13 11 11 11 11 11 9 4 Hackware 3 | . . . . 9 21 18 15 15 15 15 20 20 20 11 . . . . . . . 1 . Protection 7 | . 9 13 7 2 . . . 4 7 7 4 13 13 18 14 4 4 5 5 5 5 8 6 Energy Gun 1 | . 9 . . . . . . . . . . . . . 2 . . . . . . . . Energy Cannon 6 | . . 12 2 . . . 2 . . . . . . . 6 12 11 11 11 4 11 9 7 Ballistic Gun 3 | . 18 3 14 . . . . . . . . . . . . . . . . . . . . Ballistic Cannon 1 | . . 10 1 . . . . . . . . . . . . . . . . . . . . Peak Build Rating 183 | 9 12 13 41 51 49 53 55 55 54 55 71 70 70 69 104 111 131 134 131 132 132 150 183 Average Rating 76 | 6 9 11 27 48 48 49 54 54 54 54 66 69 69 67 80 106 127 130 130 119 130 129 148 On Entrance 67 | . 7 11 12 41 49 49 50 54 54 54 55 69 69 69 66 97 107 131 131 131 132 130 40 Naked Turns . | . . . . . . . . . . . . . . . . . . . . . . . . Heaviest Build 127 | 13 34 39 42 26 25 26 22 23 23 27 25 25 25 42 52 54 83 94 94 94 94 112 127 Greatest Support 195 | 20 40 40 82 26 26 26 25 35 26 26 35 25 35 25 70 75 90 83 60 60 60 75 195 Greatest Overweight (x) 7 | 1 . . 2 . . . . . . 1 . . . 1 7 1 1 1 1 1 1 1 2 Average Overweight (x) . | . . . . . . . . . . . . . . . . . . . 1 1 1 . . Largest Inventory Capacity 20 | 8 15 15 15 15 10 10 10 10 10 10 10 10 10 10 10 5 5 5 5 5 5 10 20 Average Capacity 10 | 7 14 15 15 10 10 9 10 10 10 10 10 10 10 10 5 5 5 5 5 5 5 8 16 Most Carried 20 | 6 15 15 15 12 10 10 10 10 10 10 10 10 10 10 10 5 5 5 5 5 5 10 20 Average Carried 9 | 4 13 14 14 9 9 9 9 9 10 9 9 10 10 10 5 4 4 4 4 4 4 7 12 Final Capacity 20 | 8 15 15 15 10 10 10 10 10 10 10 10 10 10 10 5 5 5 5 5 5 5 10 20 Final Carried 15 | 6 15 15 13 10 10 10 10 10 10 10 10 10 10 10 5 5 5 5 5 5 5 7 14 Class Distribution -------------------- 37% | Golem 34% | Mutant 13% | Hacker-Sprinter 5% | Scavenger-Mutant Dominant Class ---------------- Mutant | -10/Materials Mutant | -10/Subcaves Mutant | -8/Materials Sprinter | -7/Factory Hacker-Sprinter | -7/Waste Hacker-Sprinter | -7/Factory Machinist-Sprinter | -7/Lower Caves Hacker-Sprinter | -7/Lower Caves Hacker-Sprinter | -7/Data Miner Hacker-Sprinter | -6/Proximity Caves Hacker-Sprinter | -6/Factory Hacker-Sprinter | -6/Lower Caves Hacker-Sprinter | -6/Lower Caves Hacker-Sprinter | -6/Zion Scavenger-Mutant | -6/Deep Caves Golem | -5/Proximity Caves Golem | -5/Factory Golem | -5/Upper Caves Golem | -5/Upper Caves Golem | -5/Zhirov Golem | -4/Proximity Caves Golem | -4/Factory Golem | -3/Research Resources | -11 -10 -10 -8 -7 -7 -7 -7 -7 -7 -6 -6 -6 -6 -6 -6 -5 -5 -5 -5 -5 -4 -4 -3 ----------- Run | Yrd Mat Sub Mat Fac Was Fac Low Low Dat Pro Fac Low Low Zio Dee Pro Fac Upp Upp Zhi Pro Fac Res Matter Collected 5219 | 395 272 435 1263 242 . 380 . 107 . 101 230 . 79 101 571 398 96 74 37 38 59 130 211 Remotely . | . . . . . . . . . . . . . . . . . . . . . . . . Salvage Created 11286 | 225 774 588 1585 487 . 1048 . 206 . 36 325 . . . 812 310 806 650 129 461 269 1144 1431 Parts 524 | 23 60 32 76 15 . 32 . 2 . 3 14 . . . 39 13 44 18 10 2 16 49 76 Haulers Intercepted 21 | . 2 . 6 . . 6 . . . . 3 . . . . . 1 . . . . . 3 Recyclers Shooed 6 | . 1 . 1 3 . . . . . . . . . . . . 1 . . . . . . Parts Field Recycled . | . . . . . . . . . . . . . . . . . . . . . . . . Retrieved Matter . | . . . . . . . . . . . . . . . . . . . . . . . . Parts Self-Destructed 60 | . . 6 . . . . . . . 3 . . . 1 . 8 . 15 10 2 15 . . Prevented 3 | . . . . . . . . . . . . 3 . . . . . . . . . . . Kills | -11 -10 -10 -8 -7 -7 -7 -7 -7 -7 -6 -6 -6 -6 -6 -6 -5 -5 -5 -5 -5 -4 -4 -3 ------- Run | Yrd Mat Sub Mat Fac Was Fac Low Low Dat Pro Fac Low Low Zio Dee Pro Fac Upp Upp Zhi Pro Fac Res Combat Hostiles Destroyed 182 | . 15 16 25 . . 5 . 1 . 4 . . . . 52 4 11 7 5 . 4 17 16 Melee 3 | . . . . . . 1 . 1 . . . . . . . . . . . . 1 . . Guns 31 | . 8 . 15 . . . . . . . . . . . 6 . . . . . . . 2 Cannons 77 | . . 14 2 . . . . . . . . . . . 1 4 10 7 5 . 3 17 14 AOE 67 | . 7 . 8 . . 4 . . . 4 . . . . 43 . 1 . . . . . . Classes Destroyed 22 | 3 6 1 2 . . . . . . . . . . . 4 2 1 2 . . . 1 . Worker 19 | 2 3 . 3 1 . 7 . . . . 2 . . . . . . . . . . . 1 Builder 9 | . 2 . 3 . . 3 . . . . . . . . . . . . . . . 1 . Tunneler 9 | 7 . . 1 . . . . . . . . . . . . . 1 . . . . . . Hauler 21 | . 2 . 6 . . 6 . . . . 3 . . . . . 1 . . . . . 3 Recycler 20 | 1 1 . 4 5 . 7 . . . . . . . . . . . . . . . 1 1 Operator 5 | . 2 . 1 1 . . . . . . . . . . . . . . . . . . 1 Watcher 12 | . 3 . 1 1 . 4 . . . . 1 . . . . . 2 . . . . . . Swarmer 32 | . 6 . 3 . . 4 . 1 . 4 . . . . . . . . 5 . . 5 4 Grunt 44 | . 9 2 17 . . 1 . . . . . . . . . 3 3 4 . . 1 2 2 Brawler 1 | . . . . . . . . . . . . . . . . . . . . . . 1 . Duelist 3 | . . . . . . . . . . . . . . . . 1 . . . . . 2 . Sentry 9 | . . . 3 . . . . . . . . . . . . . 2 . . . 1 3 . Hunter 7 | . . . 2 . . . . . . . . . . . . . 1 . . . . 2 2 Programmer 19 | . . . . . . . . . . . . . . . . . 5 2 . . 2 2 8 Subdweller 14 | . . 14 . . . . . . . . . . . . . . . . . . . . . Z-Light 8 | . . . . . . . . . . . . . . . 8 . . . . . . . . Decomposer 1 | . . . . . . . . . . . . . . . . . . 1 . . . . . Packrat 2 | . . . . . . . . 2 . . . . . . . . . . . . . . . Samaritan 2 | . . . . . . . . . . . . . . . . 2 . . . . . . . Tinkerer 1 | . . . . . . . . . . . . . . . . . . 1 . . . . . Assembler 2 | . . . . . . . . . . . . . . . 2 . . . . . . . . Assembled 41 | . . . . . . . . . . . . . . . 41 . . . . . . . . Golem 2 | . . . . . . . . . . . . . . . 2 . . . . . . . . Mutant 1 | . . . . . . . . . . . . . . . . . . 1 . . . . . Best Kill Streak 40 | 2 8 2 13 4 . 7 . 1 . 4 2 . . . 40 4 4 4 5 . 2 5 3 Combat Bots Only 38 | . 5 2 7 . . 4 . 1 . 4 . . . . 38 4 4 4 5 . 2 5 3 Max Kills in Single Turn 17 | 1 5 1 2 1 . 2 . 1 . 2 1 . . . 17 1 1 1 2 . 1 2 1 Gunslinging 1 | . 1 . . . . . . . . . . . . . . . . . . . . . . Exploded 17 | . 4 . 1 . . 2 . . . 2 . . . . 17 . 1 . . . . . . Melee 1 | . . . . . . 1 . 1 . . . . . . . . . . . . 1 . . Uniques/NPCs Destroyed 1 | . . . . . . . . . . . . . . . 1 . . . . . . . . Z-Imprinter (-6/Deep Caves) Combat | -11 -10 -10 -8 -7 -7 -7 -7 -7 -7 -6 -6 -6 -6 -6 -6 -5 -5 -5 -5 -5 -4 -4 -3 -------- Run | Yrd Mat Sub Mat Fac Was Fac Low Low Dat Pro Fac Low Low Zio Dee Pro Fac Upp Upp Zhi Pro Fac Res Hostile Shots Fired 1509 | . 62 50 161 26 . 87 3 14 . 16 58 . . . 171 16 41 33 15 . 27 250 479 Missed 471 | . 18 15 44 17 . 45 2 11 . 5 25 . . . 53 2 13 11 3 . 9 52 146 Damage Taken 20278 | . 406 768 1760 107 . 670 20 42 . 208 593 . . . 3629 284 626 269 70 . 153 4346 6327 Core 2478 | . 102 137 259 47 . 158 . . . 85 88 . . . 585 37 36 32 . . 9 547 356 Absorbed by Shields 433 | . . . . . . . . . . . . . . . . . . 60 78 . 162 133 . Reduced by Siege Mode 314 | . . . . . . . . . . . . . . . . . . . . . . 32 282 Redirected to Shielding 374 | . . . . 3 . . . . . . . . . . 371 . . . . . . . . Ignored by Resistances 2155 | . . . 72 . . . . . . . . . . . . . 122 66 34 . 66 501 1294 Regen/Repaired (Parts) 540 | . . . 238 . . 93 . . . . 120 . . . . . 89 . . . . . . Core Remaining (%) 53 | 100 . 4 52 . . . . . . 58 . . . . . 16 . . . . 92 52 . Volleys Fired 665 | 58 61 97 105 . . 4 19 . . 4 8 . . . 56 7 33 28 6 21 21 58 79 Largest 2 | 2 2 2 2 . . 1 1 . . 1 1 . . . 2 2 2 2 2 1 2 2 2 Hottest 157 | 40 112 119 119 . . 39 30 . . 39 90 . . . 157 50 50 50 50 25 50 50 100 Shots Fired 1158 | 115 117 152 194 . . 3 19 . . 4 8 . . . 100 14 65 56 12 21 43 90 145 Gun 433 | 115 112 5 147 . . . . . . . . . . . 37 . . . . . . . 17 Cannon 643 | . . 112 32 . . . 19 . . . 8 . . . 44 14 65 56 12 21 43 89 128 Launcher 47 | . 5 . 15 . . 3 . . . 4 . . . . 19 . . . . . . 1 . Special 35 | . . 35 . . . . . . . . . . . . . . . . . . . . . Kinetic 426 | 115 82 60 167 . . . . . . . . . . . . . . . . . . . 2 Thermal 656 | . 30 92 18 . . . 19 . . . 8 . . . 63 14 65 56 12 21 43 89 126 Explosive 41 | . 5 . 9 . . 3 . . . 4 . . . . 19 . . . . . . 1 . Electromagnetic 35 | . . . . . . . . . . . . . . . 18 . . . . . . . 17 Robot Hit Streak 33 | 11 10 24 16 . . . . . . . . . . . 11 19 24 9 4 15 10 11 33 Robot Miss Streak 6 | 4 4 1 4 . . . . . . 2 . . . . 6 . 2 2 1 1 1 3 1 Penetration Max 1 | . . . 1 . . . . . . . . . . . . . . . . . . . . Secondary Targets 6 | . 2 . 1 . . . . . . . . . . . 3 . . . . . . . . Max Gunslinging Chain 1 | . 1 . 1 . . . . . . . . . . . 1 . . . . . . . . Shots Hit Robots 724 | 71 69 65 117 14 . 33 . 5 1 . 12 . . . 48 8 40 38 7 20 14 62 100 Core Hits 417 | 21 47 19 78 5 . 16 . 2 . 4 5 . . . 96 8 19 16 4 7 7 30 33 Critical Kills 6 | . . 2 2 . . 2 . . . . . . . . . . . . . . . . . Critical Parts Destroyed 5 | . . . 1 . . 4 . . . . . . . . . . . . . . . . . Critical Strikes 19 | . 2 2 4 . . 6 . . . . 1 . . . 1 . . . . . . . 3 Burn 2 | . 2 . . . . . . . . . . . . . . . . . . . . . . Meltdown 2 | . . 2 . . . . . . . . . . . . . . . . . . . . . Destroy 4 | . . . 4 . . . . . . . . . . . . . . . . . . . . Blast 2 | . . . . . . . . . . . . . . . . . . . . . . . 2 Corrupt 2 | . . . . . . . . . . . . . . . 1 . . . . . . . 1 Smash 6 | . . . . . . 6 . . . . . . . . . . . . . . . . . Sever 1 | . . . . . . . . . . . 1 . . . . . . . . . . . . Melee Attacks 125 | . . . . 24 . 59 1 9 1 . 30 1 . . . . . . . . . . . Impact 61 | . . . . 4 . 54 1 2 . . . . . . . . . . . . . . . Slashing 62 | . . . . 20 . 5 . 7 . . 29 1 . . . . . . . . . . . Piercing . | . . . . . . . . . . . . . . . . . . . . . . . . Sneak Attacks 43 | . . . . 10 . 22 . 2 1 . 8 . . . . . . . . . . . . Combat Hostiles 2 | . . . . . . 1 . . . . 1 . . . . . . . . . . . . Follow-up Attacks 3 | . . . . 3 . . . . . . . . . . . . . . . . . . . Damage Inflicted 32503 | 561 1209 1578 3748 986 . 3327 . 280 . 437 819 . . . 5256 457 2544 1741 411 912 706 3095 4436 Guns 3908 | 561 781 . 1752 . . . . . . . . . . . 681 . . . . . . . 133 Cannons 16237 | . . 1578 629 . . . . . . . . . . . 664 457 1990 1741 411 912 701 2891 4263 Explosions 7390 | . 428 . 1363 . . 516 . . . 437 . . . . 3911 . 554 . . . . 181 . Melee 4896 | . . . . 986 . 2811 . 280 . . 819 . . . . . . . . . . . . Ramming 72 | . . . 4 . . . . . . . . . . . . . . . . . 5 23 40 Kinetic 4045 | 561 407 541 2446 . . . . . . . . . . . . . . . . . . . 90 Thermal 16893 | . 374 1037 441 . . 199 . . . . . . . . 1027 457 2544 1741 411 912 701 2876 4173 Explosive 6131 | . 428 . 857 . . 317 . . . 437 . . . . 3911 . . . . . . 181 . Electromagnetic 451 | . . . . . . . . . . . . . . . 318 . . . . . . . 133 Impact 3059 | . . . . 253 . 2739 . 52 . . . . . . . . . . . . . 15 . Slashing 1852 | . . . . 733 . 72 . 228 . . 819 . . . . . . . . . . . . Piercing . | . . . . . . . . . . . . . . . . . . . . . . . . Highest Corruption 43 | . . . . 5 9 9 3 3 3 3 . . . . 6 6 1 1 1 1 2 12 43 Average Corruption 5 | . . . . 4 7 6 3 3 3 3 . . . . 5 6 1 1 1 1 1 3 24 Corruption Purged 15 | . . . . 3 1 11 . . . . . . . . . . . . . . . . . Corruption Blocked . | . . . . . . . . . . . . . . . . . . . . . . . . Effects 144 | . . . . 6 2 15 4 2 . 2 . . . . 9 15 2 9 6 4 17 7 44 Message Errors 32 | . . . . 1 1 5 . . . 2 . . . . 1 4 . 1 1 . 3 2 11 Matter Fused 38 | . . . . 1 . 2 2 1 . . . . . . 1 6 2 2 3 2 5 . 11 Heat Flow Errors 19 | . . . . 2 . 5 . . . . . . . . 4 1 . 1 2 . 2 1 1 Energy Discharges 15 | . . . . 1 . 1 . . . . . . . . 1 2 . 1 . . 2 . 7 Parts Rejected 1 | . . . . . . . . . . . . . . . . . . . . . . . 1 Parts Fused 1 | . . . . . . . . . . . . . . . . . . 1 . . . . . Data Loss (minor) 16 | . . . . 1 1 . 1 1 . . . . . . 1 1 . 2 . 1 4 2 1 Data Loss (major) 6 | . . . . . . . 1 . . . . . . . 1 1 . 1 . . . . 2 Misfires 4 | . . . . . . . . . . . . . . . . . . . . . 1 . 3 Alerts 2 | . . . . . . 1 . . . . . . . . . . . . . 1 . . . Misdirections 4 | . . . . . . . . . . . . . . . . . . . . . . . 4 Weapon Failures 6 | . . . . . . 1 . . . . . . . . . . . . . . . 2 3 Overload Shots 1 | . . . . . . . . . . . 1 . . . . . . . . . . . . Overflow Damage 3288 | . . . 76 312 . 1515 . 71 . 36 78 . . . 161 . 283 154 41 21 27 262 251 Projectiles 822 | . . . 20 . . . . . . . . . . . . . 46 154 41 21 27 262 251 Explosions 534 | . . . 56 . . 44 . . . 36 . . . . 161 . 237 . . . . . . Melee 1932 | . . . . 312 . 1471 . 71 . . 78 . . . . . . . . . . . . Knockbacks 21 | . . 10 1 2 . 7 . . . . . . . . . . . . . . . . 1 Impact 9 | . . . . 2 . 7 . . . . . . . . . . . . . . . . . Kinetic 12 | . . 10 1 . . . . . . . . . . . . . . . . . . . 1 Secondary . | . . . . . . . . . . . . . . . . . . . . . . . . Self-Inflicted Damage 363 | . . . 51 . . . . . . 39 . . . . 103 . 128 . . . . 42 . Shots 9 | . . . 3 . . . . . . 1 . . . . 2 . 2 . . . . 1 . Rammed 4 | . . . 2 . . . . . . . . . . . . . . . . . . 2 . Targets Rammed 9 | . . . 2 . . . . . . . . . . . . . . . . . 1 4 2 Kicked 5 | . . . . . . . . . . . . . . . . . . . . . 1 2 2 Crushed . | . . . . . . . . . . . . . . . . . . . . . . . . Highest Temperature 297 | . 187 87 57 263 10 200 . 2 2 64 262 2 124 2 297 94 8 237 214 . 235 84 114 Average Temperature 29 | . 61 18 18 26 5 14 . 2 2 20 38 2 29 2 104 31 8 102 95 . 118 54 69 Received Heat Transfer 3472 | . 90 210 999 33 . 180 . 15 . . 75 . . . 891 117 126 114 . . 44 368 210 Siege Activations 2 | . . . . . . . . . . . . . . . . . . . . . . 1 1 Total Turns 75 | . . . . . . . . . . . . . . . . . . . . . . 9 66 Longest Duration 66 | . . . . . . . . . . . . . . . . . . . . . . 9 66 Robots Corrupted 16 | . . . . 2 . 12 . . . . . . . . 2 . . . . . . . . Combat Hostiles 2 | . . . . . . . . . . . . . . . 2 . . . . . . . . Parts Fried 25 | . . . . 2 . 23 . . . . . . . . . . . . . . . . . Impact Corruptions 42 | . . . . 5 . 36 . 1 . . . . . . . . . . . . . . . Robots Melted 2 | . . 2 . . . . . . . . . . . . . . . . . . . . . Combat Hostiles 2 | . . 2 . . . . . . . . . . . . . . . . . . . . . Parts Melted 18 | . 1 10 . . . . . . . . . . . . 1 . 3 1 . . . 1 1 Heat Transferred 11213 | . 925 1406 592 . . 150 . . . . . . . . 959 225 1325 950 200 481 350 1550 2100 Parts Sabotaged . | . . . . . . . . . . . . . . . . . . . . . . . . Parts Stolen . | . . . . . . . . . . . . . . . . . . . . . . . . Parts Stripped . | . . . . . . . . . . . . . . . . . . . . . . . . Power Chain Reactions . | . . . . . . . . . . . . . . . . . . . . . . . . Alert | -11 -10 -10 -8 -7 -7 -7 -7 -7 -7 -6 -6 -6 -6 -6 -6 -5 -5 -5 -5 -5 -4 -4 -3 ------- Run | Yrd Mat Sub Mat Fac Was Fac Low Low Dat Pro Fac Low Low Zio Dee Pro Fac Upp Upp Zhi Pro Fac Res Peak Influence 721 | 50 288 . 520 540 204 721 . . . . 519 . . . . . 379 . . . . 434 230 Initial 189 | . 32 . . 169 189 142 . . . . 94 . . . . . 50 . . . . . 174 Average 191 | 25 128 . 285 343 195 372 . . . . 150 . . . . . 98 . . . . 189 121 Maximum Alert Level 3 | . 1 . 2 2 1 3 . . . . 2 . . . . . 1 . . . . 2 1 Low Security (%) 65 | 100 87 . 27 29 54 14 . . . . 80 . . . . . 79 . . . . 57 95 Level 1 22 | . 12 . 44 23 45 48 . . . . 10 . . . . . 20 . . . . 37 4 Level 2 11 | . . . 28 47 . 34 . . . . 8 . . . . . . . . . . 5 . Level 3 . | . . . . . . 1 . . . . . . . . . . . . . . . . . Level 4 . | . . . . . . . . . . . . . . . . . . . . . . . . Level 5 . | . . . . . . . . . . . . . . . . . . . . . . . . High Security . | . . . . . . . . . . . . . . . . . . . . . . . . Max Security . | . . . . . . . . . . . . . . . . . . . . . . . . Squads Dispatched 37 | . 3 . 4 3 . 9 . . . . 5 . . . . . 3 . . . . 5 5 Investigation 13 | . 1 . 2 1 . 5 . . . . 1 . . . . . 2 . . . . 1 . Extermination 7 | . . . . . . 1 . . . . . . . . . . 1 . . . . 1 4 Reinforcement 13 | . 2 . 2 2 . 2 . . . . 4 . . . . . . . . . . . 1 Assault 1 | . . . . . . . . . . . . . . . . . . . . . . 1 . Garrison 3 | . . . . . . 1 . . . . . . . . . . . . . . . 2 . Intercept . | . . . . . . . . . . . . . . . . . . . . . . . . Searches Triggered 3 | . . . . . . 1 . . . . 2 . . . . . . . . . . . . Construction Impeded . | . . . . . . . . . . . . . . . . . . . . . . . . Haulers Reinforced 2 | . . . . . . . . . . . 2 . . . . . . . . . . . . Active Scanning Responses . | . . . . . . . . . . . . . . . . . . . . . . . . Cargo Convoy Interrupts 1 | . . . . . . . . . . . . . . . . . . . . . . . 1 Stealth | -11 -10 -10 -8 -7 -7 -7 -7 -7 -7 -6 -6 -6 -6 -6 -6 -5 -5 -5 -5 -5 -4 -4 -3 --------- Run | Yrd Mat Sub Mat Fac Was Fac Low Low Dat Pro Fac Low Low Zio Dee Pro Fac Upp Upp Zhi Pro Fac Res Distress Signals 10 | . . . 3 . . 1 . . . . 3 . . . . . 1 . . . . . 2 Communications Jammed . | . . . . . . . . . . . . . . . . . . . . . . . . Distress Signals . | . . . . . . . . . . . . . . . . . . . . . . . . Times Spotted 358 | . 22 16 45 10 6 30 1 3 . 7 52 . 5 . 61 4 18 6 5 . 3 26 38 Peak Tracking Total 36 | . 5 2 7 6 6 12 1 3 . 8 17 . 4 . 36 4 7 2 5 . 2 6 10 Tactical Retreats 39 | . . . . 5 . 9 . 2 . 2 13 . . . 2 . . . . . . 2 4 Traps | -11 -10 -10 -8 -7 -7 -7 -7 -7 -7 -6 -6 -6 -6 -6 -6 -5 -5 -5 -5 -5 -4 -4 -3 ------- Run | Yrd Mat Sub Mat Fac Was Fac Low Low Dat Pro Fac Low Low Zio Dee Pro Fac Upp Upp Zhi Pro Fac Res Traps Triggered 13 | . . . 1 2 . 4 . . . . 4 . . . . . . . . . . . 2 Indirectly . | . . . . . . . . . . . . . . . . . . . . . . . . Trap Hack Attempts . | . . . . . . . . . . . . . . . . . . . . . . . . Triggered . | . . . . . . . . . . . . . . . . . . . . . . . . Disarmed . | . . . . . . . . . . . . . . . . . . . . . . . . Reprogrammed . | . . . . . . . . . . . . . . . . . . . . . . . . Reused . | . . . . . . . . . . . . . . . . . . . . . . . . Traps Extracted . | . . . . . . . . . . . . . . . . . . . . . . . . Installed . | . . . . . . . . . . . . . . . . . . . . . . . . Triggered 6 | . . . . . . . . . . 2 . 2 . . . . . . . . . . 2 Machines | -11 -10 -10 -8 -7 -7 -7 -7 -7 -7 -6 -6 -6 -6 -6 -6 -5 -5 -5 -5 -5 -4 -4 -3 ---------- Run | Yrd Mat Sub Mat Fac Was Fac Low Low Dat Pro Fac Low Low Zio Dee Pro Fac Upp Upp Zhi Pro Fac Res Machines Disabled 33 | . 1 . 8 . . 2 . . . . . . . 3 5 . 6 2 . 1 . 1 4 Max in Single Turn 5 | . 1 . 2 . . 2 . . . . . . . 1 1 . 5 1 . 1 . 1 1 Garrison Access 9 | . . . . 2 . 2 . . . . 4 . . . . . . . . . . 1 . Machines Repaired . | . . . . . . . . . . . . . . . . . . . . . . . . Machines Dismantled 3 | . . . . . . . . . . . . . . 3 . . . . . . . . . Machines Sabotaged . | . . . . . . . . . . . . . . . . . . . . . . . . Overloaded Fab Kills . | . . . . . . . . . . . . . . . . . . . . . . . . Hacking | -11 -10 -10 -8 -7 -7 -7 -7 -7 -7 -6 -6 -6 -6 -6 -6 -5 -5 -5 -5 -5 -4 -4 -3 --------- Run | Yrd Mat Sub Mat Fac Was Fac Low Low Dat Pro Fac Low Low Zio Dee Pro Fac Upp Upp Zhi Pro Fac Res Machines Accessed 92 | . 8 1 5 10 . 27 2 . 4 . 22 . . . . . 4 1 1 5 . 2 . Terminals 38 | . 6 . 4 5 . 10 . . . . 11 . . . . . 1 . . . . 1 . Fabricators 12 | . . . . 1 . 6 . . . . 3 . . . . . 2 . . . . . . Repair Stations 6 | . . . 1 . . 2 . . . . 2 . . . . . 1 . . . . . . Recycling Units 9 | . 2 . . 1 . 4 . . . . 2 . . . . . . . . . . . . Scanalyzers 3 | . . . . 1 . 2 . . . . . . . . . . . . . . . . . Garrison Access 10 | . . . . 2 . 3 . . . . 4 . . . . . . . . . . 1 . Total Hacks 361 | . 31 4 10 28 . 116 2 . 31 . 107 . . . . . 7 1 1 18 . 5 . Successful 232 | . 16 4 4 16 . 69 2 . 31 . 63 . . . . . 5 1 1 18 . 2 . Failed 128 | . 15 . 6 12 . 47 . . . . 43 . . . . . 2 . . . . 3 . Catastrophic 13 | . . . 3 3 . 3 . . . . 1 . . . . . 1 . . . . 2 . Database Lockouts 1 | . . . . . . . . . . . 1 . . . . . . . . . . . . Manual 146 | . 19 . 7 19 . 51 . . . . 46 . . . . . 4 . . . . . . Terminals 166 | . 23 . 8 16 . 55 . . . . 61 . . . . . 1 . . . . 2 . Fabricators 51 | . . . . 2 . 31 . . . . 14 . . . . . 4 . . . . . . Repair Stations 20 | . . . 2 . . 5 . . . . 11 . . . . . 2 . . . . . . Recycling Units 39 | . 8 . . 5 . 14 . . . . 12 . . . . . . . . . . . . Scanalyzers 7 | . . . . 2 . 5 . . . . . . . . . . . . . . . . . Garrison Access 21 | . . . . 3 . 6 . . . . 9 . . . . . . . . . . 3 . Terminal Hacks 107 | . 6 4 1 1 . 17 2 . 31 . 23 . . . . . . 1 1 18 . 2 . Record 22 | . . 4 . . . . . . 11 . . . . . . . . . . 6 . 1 . Part Schematic 19 | . . . . . . 2 . . 10 . 3 . . . . . . . . 4 . . . Robot Schematic 7 | . . . . . . . . . 7 . . . . . . . . . . . . . . Robot Analysis 9 | . 4 . . . . . . . . . 1 . . . . . . . . 4 . . . Prototype ID Bank 12 | . . . . . . 1 . . 3 . 4 . . . . . . . . 4 . . . Open Door 4 | . . . . . . . 2 . . . . . . . . . . 1 1 . . . . Level Access Points 1 | . . . . . . . . . . . 1 . . . . . . . . . . . . Branch Access Points 1 | . . . . . . 1 . . . . . . . . . . . . . . . . . Emergency Access Points 3 | . . . . . . 1 . . . . 2 . . . . . . . . . . . . Recycling Unit Index 1 | . . . . . . 1 . . . . . . . . . . . . . . . . . Scanalyzer Index 1 | . . . . . . 1 . . . . . . . . . . . . . . . . . Alert Level 3 | . . . 1 . . 1 . . . . 1 . . . . . . . . . . . . Unreport Threat 2 | . . . . . . 1 . . . . 1 . . . . . . . . . . . . Locate Traps 8 | . 1 . . 1 . 3 . . . . 3 . . . . . . . . . . . . Security Status 1 | . . . . . . . . . . . 1 . . . . . . . . . . . . Patrol Status 2 | . . . . . . . . . . . 2 . . . . . . . . . . . . Transport Status 1 | . . . . . . . . . . . 1 . . . . . . . . . . . . Investigation Status 1 | . . . . . . 1 . . . . . . . . . . . . . . . . . Recall Investigation 2 | . . . . . . 2 . . . . . . . . . . . . . . . . . Recall Extermination 1 | . . . . . . . . . . . 1 . . . . . . . . . . . . Recall Reinforcements 1 | . . . . . . . . . . . 1 . . . . . . . . . . . . Hauler Manifests 2 | . . . . . . . . . . . 1 . . . . . . . . . . 1 . Zone Layout 3 | . 1 . . . . 2 . . . . . . . . . . . . . . . . . Fabricator Hacks 23 | . . . . 1 . 15 . . . . 4 . . . . . 3 . . . . . . Network Status 2 | . . . . 1 . . . . . . 1 . . . . . . . . . . . . Load Schematic 13 | . . . . . . 10 . . . . 1 . . . . . 2 . . . . . . Build 8 | . . . . . . 5 . . . . 2 . . . . . 1 . . . . . . Repair Station Hacks 13 | . . . 2 . . 2 . . . . 9 . . . . . . . . . . . . Scan Component 7 | . . . 1 . . 1 . . . . 5 . . . . . . . . . . . . Repair 6 | . . . 1 . . 1 . . . . 4 . . . . . . . . . . . . Recycling Unit Hacks 8 | . 1 . . 1 . 4 . . . . 2 . . . . . . . . . . . . Retrieve Matter 3 | . . . . . . 2 . . . . 1 . . . . . . . . . . . . Retrieve Components 5 | . 1 . . 1 . 2 . . . . 1 . . . . . . . . . . . . Scanalyzer 5 | . . . . 1 . 4 . . . . . . . . . . . . . . . . . Insert Component 3 | . . . . 1 . 2 . . . . . . . . . . . . . . . . . Analyze 2 | . . . . . . 2 . . . . . . . . . . . . . . . . . Garrison Access Hacks 8 | . . . . 2 . 2 . . . . 4 . . . . . . . . . . . . Seal Access 8 | . . . . 2 . 2 . . . . 4 . . . . . . . . . . . . Unauthorized Hacks 68 | . 9 . 1 10 . 25 . . . . 21 . . . . . 2 . . . . . . Terminals 41 | . 8 . 1 7 . 13 . . . . 12 . . . . . . . . . . . . Assimilate 1 | . . . . . . 1 . . . . . . . . . . . . . . . . . Botnet 20 | . 3 . 1 3 . 7 . . . . 6 . . . . . . . . . . . . Operators 1 | . . . . 1 . . . . . . . . . . . . . . . . . . . Skim 19 | . 5 . . 3 . 5 . . . . 6 . . . . . . . . . . . . Fabricators 10 | . . . . . . 7 . . . . 2 . . . . . 1 . . . . . . Prioritize 4 | . . . . . . 2 . . . . 2 . . . . . . . . . . . . Recompile 6 | . . . . . . 5 . . . . . . . . . . 1 . . . . . . Repair Stations 1 | . . . . . . . . . . . . . . . . . 1 . . . . . . Patch 1 | . . . . . . . . . . . . . . . . . 1 . . . . . . Recycling Units 16 | . 1 . . 3 . 5 . . . . 7 . . . . . . . . . . . . Monitor 3 | . . . . . . 1 . . . . 2 . . . . . . . . . . . . Reject 4 | . . . . 1 . 1 . . . . 2 . . . . . . . . . . . . Recyclers 3 | . . . . 1 . 1 . . . . 1 . . . . . . . . . . . . Mask 5 | . . . . 1 . 2 . . . . 2 . . . . . . . . . . . . Tunnel 1 | . 1 . . . . . . . . . . . . . . . . . . . . . . Scanalyzers . | . . . . . . . . . . . . . . . . . . . . . . . . Garrison Access . | . . . . . . . . . . . . . . . . . . . . . . . . Data Cores Recovered . | . . . . . . . . . . . . . . . . . . . . . . . . Used . | . . . . . . . . . . . . . . . . . . . . . . . . Hacking Detections 55 | . 7 . 5 8 . 18 . . . . 15 . . . . . 1 . . . . 1 . Full Trace Events 5 | . 1 . 1 1 . . . . . . 1 . . . . . . . . . . 1 . Feedback Events . | . . . . . . . . . . . . . . . . . . . . . . . . Feedback Blocked . | . . . . . . . . . . . . . . . . . . . . . . . . Robot Schematics Acquired 7 | . . . . . . . . . 7 . . . . . . . . . . . . . . Robots Built . | . . . . . . . . . . . . . . . . . . . . . . . . Authchips . | . . . . . . . . . . . . . . . . . . . . . . . . Time . | . . . . . . . . . . . . . . . . . . . . . . . . Total Robot Build Rating . | . . . . . . . . . . . . . . . . . . . . . . . . Part Schematics Acquired 21 | . . . . . . 4 . . 10 . 3 . . . . . . . . 4 . . . Parts Built 9 | . . . . . . 5 . . . . 3 . . . . . 1 . . . . . . Authchips 6 | . . . . . . 5 . . . . . . . . . . 1 . . . . . . Time 514 | . . . . . . 301 . . . . 129 . . . . . 84 . . . . . . Total Part Build Rating 43 | . . . . . . 20 . . . . 17 . . . . . 6 . . . . . . Parts Repaired 6 | . . . 1 . . 1 . . . . 4 . . . . . . . . . . . . Time 234 | . . . 38 . . 43 . . . . 153 . . . . . . . . . . . . Parts Recycled . | . . . . . . . . . . . . . . . . . . . . . . . . Recycled Matter . | . . . . . . . . . . . . . . . . . . . . . . . . Retrieved Matter . | . . . . . . . . . . . . . . . . . . . . . . . . Retrieved Components 17 | . 10 . . 3 . 1 . . . . 3 . . . . . . . . . . . . Parts Scanalyzed 2 | . . . . 1 . 1 . . . . . . . . . . . . . . . . . Part Schematics Acquired 2 | . . . . . . 2 . . . . . . . . . . . . . . . . . Parts Damaged 2 | . . . . 1 . 1 . . . . . . . . . . . . . . . . . Bothacking | -11 -10 -10 -8 -7 -7 -7 -7 -7 -7 -6 -6 -6 -6 -6 -6 -5 -5 -5 -5 -5 -4 -4 -3 ------------ Run | Yrd Mat Sub Mat Fac Was Fac Low Low Dat Pro Fac Low Low Zio Dee Pro Fac Upp Upp Zhi Pro Fac Res Used RIF Installer . | . . . . . . . . . . . . . . . . . . . . . . . . Robots Hacked 2 | . . . . . . . . . 1 . 1 . . . . . . . . . . . . Non-combat 1 | . . . . . . . . . . . 1 . . . . . . . . . . . . Combat 1 | . . . . . . . . . 1 . . . . . . . . . . . . . . Robot Hacks Applied 2 | . . . . . . . . . 1 . 1 . . . . . . . . . . . . parse_system 1 | . . . . . . . . . 1 . . . . . . . . . . . . . . find_chute 1 | . . . . . . . . . . . 1 . . . . . . . . . . . . Relay Couplers Released 3 | . . . . . . . . . . . . . . . . . . . . . . 3 . Machine Destruction 3 | . . . . . . . . . . . . . . . . . . . . . . 3 . Fabnet Peak Effective % . | . . . . . . . . . . . . . . . . . . . . . . . . Robots Rewired . | . . . . . . . . . . . . . . . . . . . . . . . . Allies Hacked . | . . . . . . . . . . . . . . . . . . . . . . . . Hacks Repelled . | . . . . . . . . . . . . . . . . . . . . . . . . Allies | -11 -10 -10 -8 -7 -7 -7 -7 -7 -7 -6 -6 -6 -6 -6 -6 -5 -5 -5 -5 -5 -4 -4 -3 -------- Run | Yrd Mat Sub Mat Fac Was Fac Low Low Dat Pro Fac Low Low Zio Dee Pro Fac Upp Upp Zhi Pro Fac Res Total Allies 4 | . . . . . . 1 . . . . . . . 3 . . . . . . . . . Largest Group 3 | . . . . . . 1 . . . . . . . 3 3 . . . . . . . . Highest-Rated Group 84 | . . . . . . 10 . . . . . . . 84 84 . . . . . . . . Highest-Rated Ally 39 | . . . . . . 10 . . . . . . . 39 39 . . . . . . . . Total Orders . | . . . . . . . . . . . . . . . . . . . . . . . . Ally Attacks 12 | . . . . . . . . . . . . . . . 12 . . . . . . . . Total Damage 337 | . . . . . . . . . . . . . . . 337 . . . . . . . . Kills 5 | . . . . . . . . . . . . . . . 5 . . . . . . . . Allies Corrupted . | . . . . . . . . . . . . . . . . . . . . . . . . Allies Melted 1 | . . . . . . . . . . . . . . . 1 . . . . . . . . Intel | -11 -10 -10 -8 -7 -7 -7 -7 -7 -7 -6 -6 -6 -6 -6 -6 -5 -5 -5 -5 -5 -4 -4 -3 ------- Run | Yrd Mat Sub Mat Fac Was Fac Low Low Dat Pro Fac Low Low Zio Dee Pro Fac Upp Upp Zhi Pro Fac Res Robot Analysis Total 9 | . 4 . . . . . . . . . 1 . . . . . . . . 4 . . . Derelict Logs Recovered 15 | . . 2 . . . . . 2 . 1 . 1 1 2 . 2 . 2 1 . 1 . . Drone Launches . | . . . . . . . . . . . . . . . . . . . . . . . . Drone Recoveries . | . . . . . . . . . . . . . . . . . . . . . . . . Exploration | -11 -10 -10 -8 -7 -7 -7 -7 -7 -7 -6 -6 -6 -6 -6 -6 -5 -5 -5 -5 -5 -4 -4 -3 ------------- Run | Yrd Mat Sub Mat Fac Was Fac Low Low Dat Pro Fac Low Low Zio Dee Pro Fac Upp Upp Zhi Pro Fac Res Turns Passed 20292 | 367 2015 2480 1777 352 61 1440 146 135 22 83 1078 48 75 365 1353 795 979 1311 489 736 1347 578 2260 Spaces Moved 17696 | 212 558 1313 783 931 180 3531 385 356 90 199 2818 182 305 887 1631 352 341 582 232 207 644 196 781 Core 17 | 1 . . . . . . . . . . . . . . 16 . . . . . . . . Treads 3441 | 1 558 1313 761 . . . . . . . . . . . . . 36 384 . . . 9 379 Legs 2529 | . . . . . . . . . . . . . . . 6 348 305 198 232 207 644 187 402 Wheels 210 | 210 . . . . . . . . . . . . . . . . . . . . . . . Hover 1377 | . . . . . . . . . . . . . . . 1373 4 . . . . . . . Flight 10122 | . . . 22 931 180 3531 385 356 90 199 2818 182 305 887 236 . . . . . . . . Fastest Speed 5 | 50 160 160 155 23 23 23 23 5 23 23 5 23 5 23 23 72 135 163 180 180 180 160 140 Average Speed 76 | 94 160 160 164 23 23 23 23 22 23 24 23 23 22 33 60 147 179 169 180 180 180 180 160 Slowest Speed 400 | 160 160 160 250 23 23 26 23 23 23 88 26 23 23 88 400 150 183 246 180 180 180 240 232 Overloaded Moves 49 | . . . . . . . . 3 . . 37 . 9 . . . . . . . . . . Propulsion Burnouts . | . . . . . . . . . . . . . . . . . . . . . . . . Robots Hopped 25 | . . . . 1 . 13 . 1 . . 10 . . . . . . . . . . . . Cave-ins Triggered . | . . . . . . . . . . . . . . . . . . . . . . . . Teleports 1 | . . . . . . . . . . . . . . . . . . . . . . . 1 Exploration Rate (%) 56 | 10 91 82 54 29 83 64 62 60 75 45 64 38 48 85 85 62 14 77 43 61 84 8 25 Regions Visited 23 Branch Regions 14 Pre-discovered Areas 18 | . 1 2 . . . 3 . 1 1 . 1 . . 3 . 1 . 1 . 3 1 . . Known Exits Taken 12 | . . 1 . . . 1 1 1 1 1 1 1 . . . 1 1 1 . . 1 . . Unknown Exits Taken 9 | 1 1 . 1 . . . . . . . . . 1 1 1 . . . 1 1 . 1 . Scrap Searched 38 | . . 13 . . . . . 5 . 1 . 1 3 4 . 4 . 3 2 . 2 . . Spaces Dug 103 | . . . 8 6 . 14 10 1 . . 17 1 . . 3 . 5 . . . 20 4 14 Terrain Destroyed 497 | . 15 1 106 6 . 25 10 1 . 32 17 1 . . 85 5 71 16 4 . 29 40 33 Melee 37 | . . . . 6 . 14 1 1 . . 14 1 . . . . . . . . . . . Projectile 162 | . . 1 5 . . . 9 . . . 3 . . . 14 5 21 16 4 . 29 22 33 AOE 298 | . 15 . 101 . . 11 . . . 32 . . . . 71 . 50 . . . . 18 . Terrain Rammed . | . . . . . . . . . . . . . . . . . . . . . . . . Walls Destroyed . | . . . . . . . . . . . . . . . . . . . . . . . . Machines Disabled . | . . . . . . . . . . . . . . . . . . . . . . . . Actions | -11 -10 -10 -8 -7 -7 -7 -7 -7 -7 -6 -6 -6 -6 -6 -6 -5 -5 -5 -5 -5 -4 -4 -3 --------- Run | Yrd Mat Sub Mat Fac Was Fac Low Low Dat Pro Fac Low Low Zio Dee Pro Fac Upp Upp Zhi Pro Fac Res Total 23036 | 285 1579 1477 1098 1041 199 4044 419 392 90 226 3162 186 310 930 1878 612 646 856 291 552 790 327 1646 Wait 3704 | . 928 23 71 23 15 345 10 24 . 17 218 . 3 7 91 226 249 231 50 312 120 32 709 Move 17625 | 211 557 1312 782 929 179 3505 384 353 89 198 2797 181 304 886 1630 351 340 581 231 206 643 195 781 Hop 24 | . . . . 1 . 12 . 1 . . 10 . . . . . . . . . . . . Pick Up 198 | 7 12 14 38 14 2 48 1 1 . . 6 . . . 10 4 1 1 1 2 2 9 25 Fast Attach 138 | 6 . 1 13 11 . 13 . . . 2 21 1 1 3 34 3 7 4 . 3 . 9 6 Attach 54 | 2 . 2 11 4 . 7 1 . . 1 1 . . . 4 1 . . . . . 4 16 Detach 10 | 1 . . . 2 . 2 . . . 1 . . . . 1 . . . . . . . 3 Swap 143 | . 14 12 26 11 1 7 3 3 . 2 11 1 1 2 26 10 2 1 2 . 1 4 3 Drop 266 | . 7 16 50 26 2 27 . 1 . 1 24 2 1 4 26 10 14 10 1 8 2 12 22 Fire 665 | 58 61 97 105 . . 4 19 . . 4 8 . . . 56 7 33 28 6 21 21 58 79 Melee 121 | . . . . 20 . 59 1 9 1 . 30 1 . . . . . . . . . . . Ram . | . . . . . . . . . . . . . . . . . . . . . . . . Kick 5 | . . . . . . . . . . . . . . . . . . . . . 1 2 2 Crush 4 | . . . 2 . . . . . . . . . . . . . . . . . . 2 . Escape Stasis 51 | . . . . . . 15 . . . . 36 . . . . . . . . . . . . Rewire . | . . . . . . . . . . . . . . . . . . . . . . . . Trap . | . . . . . . . . . . . . . . . . . . . . . . . . Miscellaneous 28 | . . . . . . . . . . . . . . 28 . . . . . . . . . Route ------- -11/Scrapyard -10/Materials (discovered 5 exits: [*Mat x3] / [*Min] / *Sub) -10/Subcaves (discovered 3 exits: *Mat x2 / Rec) -8/Materials (discovered 2 exits: *Fac / [*Sto]) -7/Factory (discovered 2 exits: *Fac / *Low) -7/Waste -7/Factory (discovered 6 exits: *Fac x4 / *Low x2) -7/Lower Caves -7/Lower Caves (discovered 2 exits: *Fac / *Dat) -7/Data Miner -6/Proximity Caves -6/Factory (discovered 6 exits: *Fac x4 / *Low x2) -6/Lower Caves -6/Lower Caves (discovered 2 exits: *Fac / [*Zio]) -6/Zion (discovered 2 exits: [*Dee] / [*Pro]) -6/Deep Caves -5/Proximity Caves -5/Factory (discovered 4 exits: Fac x3 / *Upp) -5/Upper Caves -5/Upper Caves (discovered 2 exits: Fac / *Zhi) -5/Zhirov -4/Proximity Caves -4/Factory (discovered 2 exits: *Res / [*Upp]) -3/Research History --------- Turn | Location | Event 16 | -11/Scrapyard | Discovered new exit (range 15) 368 | -11/Scrapyard | Entered Materials 389 | -10/Materials | Build established: Mutant 644 | -10/Materials | Discovered new exit (range 15) 831 | -10/Materials | Discovered new exit (range 6) 968 | -10/Materials | Discovered new exit (range 16) 1463 | -10/Materials | Discovered new exit (range 13) 2370 | -10/Materials | Discovered new exit (range 7) 2383 | -10/Materials | Entered Subcaves 2402 | -10/Subcaves | Shifting Twisted Machinery released Barrage Gun 2403 | -10/Subcaves | Shifting Twisted Machinery released Sub. Monowheel 2507 | -10/Subcaves | Disturbed a concealed Subdweller 2577 | -10/Subcaves | Learned location of Zion (-6) 2630 | -10/Subcaves | Visited Clippyterm 2634 | -10/Subcaves | Identified exit to Recycling 2634 | -10/Subcaves | Learned Factory emergency access door positions 2746 | -10/Subcaves | Shifting Twisted Machinery released Battle Cannon 2789 | -10/Subcaves | Shifting Twisted Machinery released Sub. Machine Gun 2831 | -10/Subcaves | A swath of the cavern ceiling suddenly collapsed 3889 | -10/Subcaves | Identified exit to Materials 3913 | -10/Subcaves | Discovered exit to Materials (range 5) 4005 | -10/Subcaves | Disturbed a concealed Subdweller 4019 | -10/Subcaves | Core integrity fell below 50% 4039 | -10/Subcaves | Disturbed a concealed Subdweller 4265 | -10/Subcaves | Met a Zionite searching for "candidates" 4304 | -10/Subcaves | Core integrity fell below 20% 4863 | -10/Subcaves | Entered Materials 4863 | -8/Materials | Evolved 4 slots: Propulsion x2, Utility x2 5104 | -8/Materials | Lost 5 parts (1p3n1u) 5323 | -8/Materials | Discovered new exit (range 7) 5457 | -8/Materials | Build established: Scavenger-Mutant 5824 | -8/Materials | Build established: Mutant 5899 | -8/Materials | Repaired Arm. Treads 5919 | -8/Materials | Discovered new exit (range 10) 6034 | -8/Materials | Destroyed 7 combat bots 6640 | -8/Materials | Entered Factory 6640 | -7/Factory | Evolved 2 slots: Propulsion x1, Utility x1 6811 | -7/Factory | Discovered new exit (range 5) 6815 | -7/Factory | Identified exit to Factory 6881 | -7/Factory | Discovered new exit (range 15) 6886 | -7/Factory | Identified exit to Lower Caves 6992 | -7/Factory | Sucked down chute 6992 | -7/Factory | Entered Waste 6997 | -7/Waste | Spotted C-40 Crusher 6999 | -7/Waste | Spotted C-40 Crusher 7007 | -7/Waste | EMP discharged 7012 | -7/Waste | Found Quantum Capacitor 7014 | -7/Waste | Spotted C-40 Crusher 7017 | -7/Waste | Spotted C-40 Crusher 7023 | -7/Waste | Spotted C-40 Crusher 7023 | -7/Waste | Spotted C-40 Crusher 7025 | -7/Waste | Discovered new exit (range 14) 7053 | -7/Waste | Identified exit to Factory 7053 | -7/Waste | Entered Factory 7157 | -7/Factory | Build established: Hacker-Sprinter 7265 | -7/Factory | Garrison activated, responded to threat 7728 | -7/Factory | Discovered exit to Factory (range 6) 7759 | -7/Factory | Discovered exit to Factory (range 11) 7853 | -7/Factory | Search patrols dispatched 7865 | -7/Factory | Learned location of Proximity Caves (-4) 7937 | -7/Factory | Fabricated Cld. VTOL Module (x1) 7953 | -7/Factory | Learned location of Extension (-4) 7982 | -7/Factory | Learned location of 1 exit from Upper Caves 8026 | -7/Factory | Learned location of 2 exits from Lower Caves 8053 | -7/Factory | Repaired Broken HERF Cannon 8063 | -7/Factory | Loaded intel: 6 fabricator locations 8110 | -7/Factory | Learned location of 1 exit from Extension 8204 | -7/Factory | Fabricated Cld. VTOL Module (x1) 8277 | -7/Factory | Fabricated Cld. VTOL Module (x1) 8352 | -7/Factory | Fabricated Cld. VTOL Module (x1) 8451 | -7/Factory | Fabricated Cld. VTOL Module (x1) 8493 | -7/Factory | Entered Lower Caves 8494 | -7/Lower Caves | Identified exit to Lower Caves 8567 | -7/Lower Caves | Spotted B-75 Beast 8639 | -7/Lower Caves | Entered another Lower Caves area 8639 | -7/Lower Caves | Discovered exit to Factory (range 10) 8640 | -7/Lower Caves | Identified exit to Data Miner 8656 | -7/Lower Caves | Attracted the attention of an 0b10 checkpoint 8663 | -7/Lower Caves | Learned Factory machine intel 8774 | -7/Lower Caves | Entered Data Miner 8774 | -7/Data Miner | Discovered new exit (range 6) 8779 | -7/Data Miner | Met Data Miner 8787 | -7/Data Miner | Learned location of Section 7 (-2) 8787 | -7/Data Miner | Acquired the access code to Warlord's prototype stash 8791 | -7/Data Miner | Received God Mode back door access code from Data Miner 8796 | -7/Data Miner | Identified exit to Proximity Caves 8796 | -7/Data Miner | Entered Proximity Caves 8823 | -6/Proximity Caves | Found DCF Scrap (16 items) 8854 | -6/Proximity Caves | Learned Factory terminal intel 8879 | -6/Proximity Caves | Entered Factory 8879 | -6/Factory | Evolved 2 slots: Utility x2 8880 | -6/Factory | Loaded intel: 317 machine locations 8881 | -6/Factory | Loaded intel: 26 terminal locations 9026 | -6/Factory | Discovered new exit (range 8) 9081 | -6/Factory | Identified exit to Factory 9182 | -6/Factory | Fabricated Imp. Plasma Cutter (x2) 9229 | -6/Factory | Search patrols dispatched 9246 | -6/Factory | Central database locked down 9295 | -6/Factory | Learned 4 Proximity Caves zone layouts 9305 | -6/Factory | Fabricated Imp. Hacking Suite? 9361 | -6/Factory | Identified exit to Lower Caves 9382 | -6/Factory | Learned Hub_04(d) trap positions 9393 | -6/Factory | Learned 4 Lower Caves zone layouts 9446 | -6/Factory | Learned Extension security intel 9600 | -6/Factory | Repaired Broken Imp. Cesium-ion Thruster 9637 | -6/Factory | Repaired Cld. VTOL Module 9669 | -6/Factory | Repaired Broken Mak. Power Source 9929 | -6/Factory | Search patrols dispatched 9939 | -6/Factory | Repaired Mak. Power Source 9957 | -6/Factory | Entered Lower Caves 9958 | -6/Lower Caves | Identified exit to Lower Caves 9983 | -6/Lower Caves | Learned Factory garrison access intel 10005 | -6/Lower Caves | Entered another Lower Caves area 10012 | -6/Lower Caves | Discovered exit to Factory (range 14) 10023 | -6/Lower Caves | Learned Factory trap positions 10076 | -6/Lower Caves | Discovered new exit (range 20) 10080 | -6/Lower Caves | Entered Zion 10090 | -6/Zion | Discovered new exit (range 10) 10126 | -6/Zion | Learned Factory emergency access door positions 10134 | -6/Zion | Learned 8 Factory zone layouts 10138 | -6/Zion | Learned location of Quarantine (-3) 10151 | -6/Zion | Learned location of Armory (-4) 10157 | -6/Zion | Gained Derelict followers 10165 | -6/Zion | Received a hallucinogenic algorithm 10433 | -6/Zion | Discovered new exit (range 5) 10435 | -6/Zion | Saw the warning signs outside the Deep Caves entrance 10445 | -6/Zion | Entered Deep Caves 10445 | -6/Deep Caves | Accompanied by 3 allies 10605 | -6/Deep Caves | Z-Facility disabled 10609 | -6/Deep Caves | Attacked by Z-Imprinter 10664 | -6/Deep Caves | Destroyed Z-Imprinter 10680 | -6/Deep Caves | Found Prototype Protection 10680 | -6/Deep Caves | Identified Zio. Weapon Casing 10690 | -6/Deep Caves | Lost 5 parts (5u) 10761 | -6/Deep Caves | Found Prototype Protection 10761 | -6/Deep Caves | Identified Zio. Heavy Carapace 10802 | -6/Deep Caves | Core integrity fell below 50% 10814 | -6/Deep Caves | Found Zio. Heavy Carapace 10819 | -6/Deep Caves | Found Zio. Weapon Casing 10847 | -6/Deep Caves | Found Zio. Weapon Casing 10863 | -6/Deep Caves | Lost 14 parts (1p3n7u3w) 11143 | -6/Deep Caves | Spotted AG-88293 11149 | -6/Deep Caves | Build established: Scavenger-Mutant 11173 | -6/Deep Caves | Destroyed AG-88293 11233 | -6/Deep Caves | Found Zio. Heavy Carapace 11239 | -6/Deep Caves | Found Zio. Heavy Carapace 11256 | -6/Deep Caves | Found Zio. Weapon Casing 11345 | -6/Deep Caves | Spotted AG-10019 11369 | -6/Deep Caves | Destroyed AG-10019 11453 | -6/Deep Caves | Found Zio. Heavy Carapace 11512 | -6/Deep Caves | Triggered Deep Caves wall 11512 | -6/Deep Caves | Spotted AS-76938 11512 | -6/Deep Caves | Spotted AS-52607 11517 | -6/Deep Caves | Exposed GOLEM chamber 11529 | -6/Deep Caves | Destroyed AS-52607 11534 | -6/Deep Caves | Destroyed AS-76938 11545 | -6/Deep Caves | Found GOLEM Unit 11556 | -6/Deep Caves | Found GOLEM Unit 11571 | -6/Deep Caves | Destroyed 38 combat bots 11583 | -6/Deep Caves | Lost 4 parts (3n1u) 11624 | -6/Deep Caves | Found Surveybot 24 Scanner 11628 | -6/Deep Caves | Found Surveybot 24 Chip 11671 | -6/Deep Caves | Discovered new exit (range 3) 11798 | -6/Deep Caves | Entered Proximity Caves 12330 | -5/Proximity Caves | Build established: Golem 12417 | -5/Proximity Caves | Core integrity fell below 20% 12494 | -5/Proximity Caves | Discovered exit to Factory (range 22) 12591 | -5/Proximity Caves | Learned 8 Factory zone layouts 12593 | -5/Proximity Caves | Entered Factory 12593 | -5/Factory | Evolved 2 slots: Power x1, Utility x1 12594 | -5/Factory | Identified exit to Upper Caves 12595 | -5/Factory | Identified exit to Factory 12596 | -5/Factory | Loaded intel: 116 trap records 12598 | -5/Factory | Loaded intel: 3 garrison access locations 13247 | -5/Factory | Fabricated Combat Drone Bay (x1) 13572 | -5/Factory | Entered Upper Caves 13573 | -5/Upper Caves | Identified exit to Upper Caves 14231 | -5/Upper Caves | Learned location of Warlord (-4) 14252 | -5/Upper Caves | Learned Factory security intel 14632 | -5/Upper Caves | Attacked by a delusional Derelict stockpiling parts 14883 | -5/Upper Caves | Entered another Upper Caves area 14892 | -5/Upper Caves | Found DCF Scrap (13 items) 14900 | -5/Upper Caves | Discovered exit to Factory (range 15) 15088 | -5/Upper Caves | Learned Factory stockpile data 15301 | -5/Upper Caves | Discovered new exit (range 20) 15372 | -5/Upper Caves | Entered Zhirov 15372 | -5/Zhirov | Discovered new exit (range 3) 15409 | -5/Zhirov | Met Zhirov 15444 | -5/Zhirov | Learned location of Testing (-2) 15444 | -5/Zhirov | Learned location of Command (-1) 15460 | -5/Zhirov | Zhirov requested help retrieving the SGEMP Prototype 15491 | -5/Zhirov | Found Alien Artifact 15491 | -5/Zhirov | Identified Integrated Dissipator 15491 | -5/Zhirov | Installed Integrated Dissipator, increased core heat dissipation (+20) 15762 | -5/Zhirov | Found Alien Artifact 16108 | -5/Zhirov | Entered Proximity Caves 16553 | -4/Proximity Caves | Attracted the attention of an 0b10 checkpoint 17170 | -4/Proximity Caves | Discovered exit to Factory (range 24) 17455 | -4/Proximity Caves | Entered Factory 17455 | -4/Factory | Evolved 2 slots: Utility x2 17612 | -4/Factory | Discovered new exit (range 24) 17699 | -4/Factory | Discovered new exit (range 24) 17792 | -4/Factory | Garrison activated, responded to threat 17982 | -4/Factory | System corruption reached 10% 18033 | -4/Factory | Entered Research 18033 | -3/Research | Evolved 2 slots: Utility x2 18052 | -3/Research | Lost 16 parts (1p6n7u2w) 18264 | -3/Research | Build established: Mutant 18673 | -3/Research | Cargo convoy interrupted 18786 | -3/Research | Build established: Golem 18893 | -3/Research | Spotted B-86 Titan 19296 | -3/Research | Found Prototype Device 19296 | -3/Research | Identified Exp. Focal Shield 19429 | -3/Research | System corruption reached 10% 19684 | -3/Research | Spotted B-86 Titan 19845 | -3/Research | Identified Transdimensional Reconstructor 19845 | -3/Research | Warped through subspace 20182 | -3/Research | System corruption reached 30% 20245 | -3/Research | Lost 8 parts (2p1n3u2w) 20293 | -3/Research | Self-destructed Last Messages --------------- 20284_ Biometal Medium Treads destroyed. 20284_ K-01 Serf collects debris. 20286_ System corrupted: Matter fused (-5). 20286_ System corrupted: Asb. Focal Cannon failed to cycle. 20286_ Destroyed Lgt. Ion Engine. 20286_ K-01 Serf suffers critical hit (Blast). 20286_ K-01 Serf destroyed. 20287_ Asb. Focal Cannon destroyed. 20288_ GOLEM Unit beginning Asb. Focal Cannon integration. 20288_ K-01 Serf collects debris. 20288_ L-61 Swordsman Flexi-carbon Leg blasted off. 20288_ L-61 Swordsman knocked back. 20289_ Asb. Alloy Armor destroyed. 20289_ Critical hit (Burn: +37). 20289_ Asb. Suspension Frame destroyed. 20290_ K-01 Serf collects debris. 20293_ GOLEM Unit destroyed. Map ----- +----------------------------------------------------+ | ?????????????????????????????????# """"" #????## | | ?????????????????????????????????# """"" ####### | | ?????????????????????????????????# +% | | ?????????????????????????????????# ####### | | ?????????????????????? ??????????###########?????? | | ??????????????????? ??????????????????????????? | | ???????????????????? ?????????????????????????# | | ???????????????????? ?????????????????????????# | | ?????????????????? ?????????????????????????# | | ??????????????????? ?????????????????????????# | | ??????????????????? ?????????????????????????# | | ?????????????????? ############?????????????# | | ??????????????????? ##????????????# | | ?????????????????# hh ?????????????# | | ?????????????????# #????##+??????# | | ???????????????? # ????? ##### | | ???????????????? + ?????# | | ?????????????????# """ ! #?????# ] | | ?????????????????# "" kk """ #?????# | | ?????????????????# """ """"#?????# ##### | | ?????????????????# "" gg F""#?????## ?????# | | ?????????????????# """ = ""#??????# ??????? | | ?????????????????# "" ""#??????+????????? | | ?????????????????# k"" "" #???????????????? | | ?????????????????# g l #???????????????? | | ???????????####### @ #???????????????? | | ???????????+ k %! p ! #????????? | | ???????????######### % ###########????????? | | ???????????????????# #??????????????????? | | ???????????????????########p###??#???????????????? | | ??????????????????######### #???? ??#### #???? | | ??????????????????# #u## [ #???? | | ??????????????????# + +???? | | ??????????????????# # ## #???? | | ????????????????########/## #?? ??#### #???? | | ????????????????# / #??? ##??????????????? | | ????????????????# # #??? #???????????????? | | ????????????????# # #??? #???????????????? | | ????????????????# ?# #??? #???????????????? | | ????????????????# ??# #??? #???????????????? | | ????????????????# ???# #??# #???????????????? | | ????????????????####???# #??# #???????????????? | | ???????????????????#####/##/##?# #???????????????? | | ???????????????????# ### ###?????????????? | | ???????????????????# # #######+###???? | | ???????????????????# # #???? | | ???????????????????# """ + +???? | | ???????????????????# """ # #???? | | ???????????????????#! """ # ###########???? | | ???????????????????# ## ########???????? | +----------------------------------------------------+ Best States ------------- Heat Dissipation 111 Coolant Potential 65 Energy Generation 45 Energy Capacity 1700 Matter Stores 300 Matter Capacity 300 Sight Range 22 Robot Scan Range 15 Terrain Scan Range 24 Terrain Scan Density 2010 Additional Mass Support 20 Corruption Containment 8 Corruption Block 8 Armor Coverage 1600 Resistance: KI 20 Resistance: TH 15 Resistance: EX 15 Resistance: EM 15 Resistance: I 15 Resistance: S 15 Resistance: P 15 Power Shielding 66 Propulsion Shielding 66 Weapon Shielding 100 Phase Shifting 8 Evasion (%) 69 Targeting Accuracy 8 Core Analysis 8 Recoil Reduction 5 Offensive Hacking 23 Defensive Hacking 22 Authchip Count 1 Item Schematics ----------------- Cld. VTOL Module | -7/Factory | Scanalyzed Neutrino Core | -7/Factory | Hacked Imp. Deuterium Engine | -7/Factory | Hacked HERF Cannon | -7/Factory | Scanalyzed Combat Drone Bay | -7/Data Miner | Free Lgt. Regenerative Plating | -7/Data Miner | Free Biomechanical Wings | -7/Data Miner | Free Exp. Targeting Computer | -7/Data Miner | Free Com. Ion Cannon | -7/Data Miner | Free Antigrav System | -7/Data Miner | Free Lrn. Tractor Beam | -7/Data Miner | Free KE Penetrator | -7/Data Miner | Free Focal Shield | -7/Data Miner | Free Imp. Launcher Guidance Computer | -7/Data Miner | Free Imp. Hacking Suite | -6/Factory | Hacked Imp. System Shield | -6/Factory | Hacked Imp. Weapon Cycler | -6/Factory | Hacked Assault Drone Bay | -5/Zhirov | Free Exp. Heat Sink | -5/Zhirov | Free Exp. Optical Array | -5/Zhirov | Free Imp. Arc Thrower | -5/Zhirov | Free Robot Schematics ------------------ Y-54 Guardian | -7/Data Miner | Free G-47 Trooper | -7/Data Miner | Free R-10 Processor | -7/Data Miner | Free M-14 Sweeper | -7/Data Miner | Free B-48 Gladiator | -7/Data Miner | Free E-15 Imp | -7/Data Miner | Free L-41 Fighter | -7/Data Miner | Free Fabricated ------------ Cld. VTOL Module | x1 | -7/Factory | Authchip Cld. VTOL Module | x1 | -7/Factory | Authchip Cld. VTOL Module | x1 | -7/Factory | Authchip Cld. VTOL Module | x1 | -7/Factory | Authchip Cld. VTOL Module | x1 | -7/Factory | Authchip Imp. Plasma Cutter | x2 | -6/Factory | Preloaded Imp. Hacking Suite | x1 | -6/Factory Combat Drone Bay | x1 | -5/Factory | Authchip Alien Tech Used ----------------- Integrated Dissipator Transdimensional Reconstructor Achievements -------------- Boltbath Challenges ------------ None Game ------ Seed FlyingGreatKatana Manual? 0 Play Time 04:11:40 Cumulative 227.3 hours Start 2024.08.09 @ 20:31:34 End 2024.08.11 @ 21:59:52 Sessions 15 Manual Loads 0 Difficulty Rogue Special Mode None Game No. 189 Rogue 184 Adventurer 5 Explorer 0 Win Type - Total 4 Types 2/0/2/0/0/0/0/0/0 Lore% 59 Gallery% 78 Achievement% 62 Wizard Run 0 Options --------- Layout 2 ASCII 0 Keyboard 0 Movement Mouse Keybinds 0 Fullscreen 2 Font 24/Smallcaps Map View 50x44 Zoom Use 0% Tactical HUD 1 Map Filters NONE Filters NONE Steam 1 RUN: a3888a8b-cccc-4647-ae20-e38aa7de867f